bitfinex/quotes_SOLUSD_20241101
["timestamp","ask_amount","ask_price","bid_price","bid_amount"]
[1730488003801,20.0,166.46,166.44,15.0203]
[1730488004003,20.0,166.44,166.37,28.52756363]
[1730488004182,20.0,166.44,166.38,73.38896363]
[1730488004183,42.30126363,166.44,166.38,73.38896363]
[1730488004502,42.30126363,166.44,166.39,52.35026363]
[1730488004705,22.30126363,166.44,166.39,52.35026363]
[1730488004888,22.30126363,166.41,166.39,30.049]
[1730488005305,22.30126363,166.42,166.39,30.049]
[1730488005993,22.30126363,166.43,166.39,30.049]
[1730488006192,20.0,166.42,166.39,30.049]
[1730488006929,22.30126363,166.42,166.39,30.049]
[1730488007293,22.30126363,166.4,166.38,51.0877]
[1730488007792,22.30126363,166.41,166.38,51.0877]
[1730488008193,20.0,166.41,166.38,51.0877]
[1730488008500,22.30126363,166.45,166.4,22.30126363]
[1730488009005,22.30126363,166.46,166.41,51.0785]
[1730488009309,22.30126363,166.47,166.42,22.30126363]
[1730488009515,6.114,166.52,166.44,22.30126363]
[1730488009516,22.30126363,166.49,166.44,22.30126363]
[1730488009887,22.30126363,166.49,166.43,22.30126363]
[1730488010288,22.30126363,166.5,166.45,22.30126363]
[1730488011092,22.30126363,166.48,166.42,43.33226363]
[1730488011417,20.0,166.46,166.42,21.031]
[1730488011591,20.0,166.46,166.42,73.37666363]
[1730488011796,20.0,166.46,166.43,22.30126363]
[1730488012008,42.30126363,166.49,166.43,22.30126363]
[1730488012305,22.30126363,166.47,166.42,103.42106363]
[1730488012491,20.0,166.46,166.42,81.1198]
[1730488012689,22.30126363,166.45,166.42,81.1198]
[1730488012905,22.30126363,166.43,166.42,51.0754]
[1730488013104,42.30126363,166.43,166.42,30.0444]
[1730488014009,20.0,166.43,166.42,30.0444]
[1730488019718,42.30126363,166.43,166.42,30.0444]
[1730488020215,20.0,166.43,166.42,30.0444]
[1730488020391,22.30126363,166.48,166.42,52.34566363]
[1730488020597,20.0,166.46,166.42,52.34566363]
[1730488020800,20.0,166.45,166.42,30.0444]
[1730488021514,42.30126363,166.45,166.42,30.0444]
[1730488021716,20.0,166.42,166.41,15.0231]
[1730488021900,42.30126363,166.42,166.41,15.0231]
[1730488023204,20.0,166.42,166.41,15.0231]
[1730488023521,20.0,166.42,166.41,37.32436363]
[1730488023822,20.0,166.42,166.41,43.33356363]
[1730488023998,20.0,166.42,166.41,21.0323]
[1730488024196,42.30126363,166.42,166.41,21.0323]
[1730488024733,20.0,166.42,166.41,21.0323]
[1730488026110,22.30126363,166.42,166.37,22.30126363]
[1730488026296,22.30126363,166.43,166.37,22.30126363]
[1730488026497,20.0,166.42,166.38,22.30126363]
[1730488026713,42.30126363,166.42,166.36,22.30126363]
[1730488027506,22.30126363,166.43,166.37,22.30126363]
[1730488027706,20.0,166.42,166.37,22.30126363]
[1730488028103,20.0,166.41,166.36,22.30126363]
[1730488028514,20.0,166.41,166.39,22.30126363]
[1730488028706,20.0,166.41,166.4,22.30126363]
[1730488028904,42.30126363,166.42,166.36,22.30126363]
[1730488029101,20.0,166.4,166.36,22.30126363]
[1730488029302,20.0,166.4,166.37,22.30126363]
[1730488029722,20.0,166.42,166.37,22.30126363]
[1730488030225,20.0,166.42,166.38,22.30126363]
[1730488030427,20.0,166.45,166.41,22.30126363]
[1730488030806,42.30126363,166.45,166.4,52.34826363]
[1730488031008,20.0,166.44,166.4,52.34826363]
[1730488031938,20.0,166.44,166.4,30.047]
[1730488032101,22.30126363,166.44,166.4,30.047]
[1730488032519,20.0,166.43,166.4,30.047]
[1730488032722,20.0,166.43,166.4,51.0806]
[1730488033120,22.30126363,166.49,166.42,22.30126363]
[1730488033329,22.30126363,166.5,166.45,22.30126363]
[1730488033543,22.30126363,166.51,166.45,22.30126363]
[1730488034034,22.30126363,166.51,166.46,22.30126363]
[1730488034342,22.30126363,166.51,166.45,22.30126363]
[1730488034515,22.30126363,166.52,166.46,22.30126363]
[1730488034745,22.30126363,166.52,166.47,22.30126363]
[1730488035125,22.30126363,166.52,166.46,52.33846363]
[1730488035641,23.776884,166.51,166.46,52.33846363]
[1730488035951,22.30126363,166.51,166.46,52.33846363]
[1730488036234,22.30126363,166.48,166.43,22.30126363]
[1730488036438,22.30126363,166.48,166.42,43.33226363]
[1730488036814,22.30126363,166.48,166.43,22.30126363]
[1730488037019,20.0,166.47,166.42,73.37666363]
[1730488037421,20.0,166.47,166.42,51.0754]
[1730488037736,20.0,166.48,166.46,22.30126363]
[1730488038044,20.0,166.48,166.44,22.30126363]
[1730488038440,20.0,166.46,166.42,73.37666363]
[1730488039020,22.30126363,166.48,166.42,73.37666363]
[1730488039237,20.0,166.47,166.42,73.37666363]
[1730488039619,20.0,166.47,166.43,22.30126363]
[1730488039844,20.0,166.48,166.43,22.30126363]
[1730488040036,20.0,166.48,166.44,22.30126363]
[1730488040339,20.0,166.51,166.47,22.30126363]
[1730488040547,20.0,166.52,166.48,22.30126363]
[1730488041456,37.59736363,166.54,166.49,22.30126363]
[1730488041959,37.59736363,166.54,166.5,21.021]
[1730488042522,22.30126363,166.55,166.5,43.32226363]
[1730488042739,22.30126363,166.56,166.51,22.30126363]
[1730488042942,22.30126363,166.56,166.5,73.35226363]
[1730488043150,42.30126363,166.52,166.5,51.051]
[1730488043447,20.0,166.52,166.5,51.051]
[1730488043852,20.0,166.53,166.5,45.045]
[1730488044144,22.30126363,166.58,166.52,22.30126363]
[1730488044450,22.30126363,166.57,166.51,22.30126363]
[1730488044941,22.30126363,166.57,166.52,22.30126363]
[1730488045140,22.30126363,166.56,166.5,67.34626363]
[1730488045346,22.30126363,166.57,166.51,22.30126363]
[1730488045551,22.30126363,166.57,166.52,22.30126363]
[1730488045844,6.0093,166.63,166.48,22.30126363]
[1730488045845,22.30126363,166.6,166.54,22.30126363]
[1730488046458,22.30126363,166.6,166.55,22.30126363]
[1730488046652,22.30126363,166.64,166.53,15.0123]
[1730488046653,22.30126363,166.62,166.56,22.30126363]
[1730488047156,20.0,166.61,166.56,22.30126363]
[1730488047373,22.30126363,166.63,166.58,22.30126363]
[1730488047566,22.30126363,166.64,166.58,22.30126363]
[1730488047862,22.30126363,166.64,166.54,6.5348]
[1730488047863,22.30126363,166.64,166.59,22.30126363]
[1730488048074,22.30126363,166.64,166.6,21.0084]
[1730488048316,23.776884,166.63,166.6,21.0084]
[1730488048580,22.30126363,166.64,166.6,21.0084]
[1730488048771,22.30126363,166.62,166.6,21.0084]
[1730488049155,21.1551,166.68,166.6,21.0084]
[1730488049156,22.30126363,166.64,166.6,21.0084]
[1730488049856,22.30126363,166.61,166.6,21.0084]
[1730488050054,22.30126363,166.61,166.58,30.0144]
[1730488050249,22.30126363,166.6,166.57,21.0121]
[1730488050454,66.07814763,166.58,166.57,21.0121]
[1730488050865,20.0,166.58,166.57,21.0121]
[1730488051162,66.07814763,166.58,166.57,15.0087]
[1730488051555,23.776884,166.57,166.53,15.0118]
[1730488051759,6.0013,166.63,166.49,15.0152]
[1730488051760,20.0,166.53,166.49,15.0152]
[1730488052005,42.30126363,166.51,166.49,15.0152]
[1730488052355,42.30126363,166.5,166.49,15.0152]
[1730488052675,20.0,166.5,166.49,15.0152]
[1730488053379,42.30126363,166.5,166.49,15.0152]
[1730488054164,20.0,166.49,166.46,22.30126363]
[1730488054355,22.30126363,166.54,166.48,22.30126363]
[1730488054560,42.30126363,166.53,166.48,22.30126363]
[1730488054857,20.0,166.53,166.5,22.30126363]
[1730488055051,20.0,166.53,166.51,22.30126363]
[1730488055357,23.776884,166.51,166.45,30.0377]
[1730488055559,46.07814763,166.51,166.45,30.0377]
[1730488055929,23.776884,166.51,166.46,22.30126363]
[1730488056146,46.07814763,166.51,166.47,21.0247]
[1730488056356,22.30126363,166.49,166.47,21.0247]
[1730488056531,42.30126363,166.48,166.47,21.0247]
[1730488056740,20.0,166.48,166.47,21.0247]
[1730488058235,20.0,166.48,166.47,15.0177]
[1730488058838,66.07814763,166.48,166.47,15.0177]
[1730488059037,20.0,166.46,166.45,6.0078]
[1730488060346,20.0,166.47,166.44,15.02]
[1730488060533,22.30126363,166.48,166.44,15.02]
[1730488060534,66.07814763,166.45,166.44,15.02]
[1730488060953,20.0,166.45,166.44,15.02]
[1730488061342,66.07814763,166.45,166.44,15.02]
[1730488062164,20.0,166.45,166.44,15.02]
[1730488067175,20.0,166.44,166.42,22.30126363]
[1730488067649,20.0,166.46,166.42,22.30126363]
[1730488067843,20.0,166.46,166.41,22.30126363]
[1730488068044,42.30126363,166.45,166.4,30.0464]
[1730488068741,20.0,166.45,166.4,30.0464]
[1730488068951,20.0,166.45,166.41,22.30126363]
[1730488069272,20.0,166.46,166.42,67.36786363]
[1730488069447,20.0,166.46,166.42,45.0666]
[1730488070345,20.0,166.46,166.42,51.0754]
[1730488070547,13.8816602,166.47,166.42,51.0754]
[1730488071048,20.0,166.46,166.42,51.0754]
[1730488073048,20.0,166.47,166.43,13.8816602]
[1730488073656,20.0,166.48,166.44,13.8816602]
[1730488074443,20.0,166.48,166.43,13.8816602]
[1730488074646,13.8816602,166.48,166.43,13.8816602]
[1730488075067,13.8816602,166.46,166.44,21.0285]
[1730488075460,20.0,166.45,166.44,21.0285]
[1730488077371,20.0,166.45,166.44,15.0204]
[1730488078479,16.0501,166.54,166.44,28.9020602]
[1730488078480,13.8816602,166.5,166.44,28.9020602]
[1730488078656,13.8816602,166.51,166.45,13.8816602]
[1730488079480,13.8816602,166.5,166.46,21.026]
[1730488079790,20.0,166.49,166.46,21.026]
[1730488080251,33.8816602,166.47,166.46,21.026]
[1730488080450,20.0,166.47,166.46,51.0632]
[1730488081268,33.8816602,166.47,166.46,30.0372]
[1730488081590,23.776884,166.46,166.43,51.0724]
[1730488081888,57.6585442,166.44,166.43,21.0298]
[1730488082068,57.6585442,166.44,166.43,15.0213]
[1730488082250,43.776884,166.43,166.4,15.024]
[1730488082457,13.8816602,166.41,166.4,15.024]
[1730488082665,57.6585442,166.41,166.4,15.024]
[1730488083260,43.776884,166.41,166.4,15.024]
[1730488083460,20.0,166.41,166.4,15.024]
[1730488083763,33.8816602,166.41,166.4,15.024]
[1730488083975,20.0,166.41,166.4,15.024]
[1730488085369,20.0,166.4,166.38,30.0514]
[1730488085770,33.8816602,166.4,166.38,30.0514]
[1730488085970,33.8816602,166.39,166.38,30.0514]
[1730488086173,20.0,166.38,166.35,21.0399]
[1730488086370,20.0,166.38,166.35,34.9215602]
[1730488087060,13.8816602,166.42,166.36,13.8816602]
[1730488087263,20.0,166.42,166.38,13.8816602]
[1730488087463,20.0,166.42,166.39,21.0348]
[1730488087883,33.8816602,166.42,166.39,21.0348]
[1730488088183,20.0,166.4,166.39,21.0348]
[1730488088786,33.8816602,166.4,166.39,21.0348]
[1730488089468,20.0,166.4,166.35,43.9387602]
[1730488089667,20.0,166.4,166.36,64.9755602]
[1730488090286,43.776884,166.41,166.36,64.9755602]
[1730488092066,57.6585442,166.39,166.36,51.0939]
[1730488093867,57.6585442,166.39,166.36,45.0829]
[1730488094280,57.6585442,166.37,166.36,15.0276]
[1730488095364,20.0,166.37,166.36,15.0276]
[1730488095686,20.0,166.37,166.36,28.9092602]
[1730488095894,20.0,166.37,166.36,34.9202602]
[1730488096179,13.8816602,166.43,166.36,34.9202602]
[1730488096387,13.8816602,166.42,166.36,34.9202602]
[1730488096587,15.3543,166.45,166.36,51.0939]
[1730488096588,13.8816602,166.4,166.36,51.0939]
[1730488096975,13.8816602,166.44,166.38,13.8816602]
[1730488097294,13.8816602,166.46,166.4,13.8816602]
[1730488097460,13.8816602,166.45,166.39,13.8816602]
[1730488097664,13.8816602,166.43,166.36,51.0939]
[1730488097887,13.8816602,166.41,166.36,51.0939]
[1730488098186,13.8816602,166.42,166.36,64.9755602]
[1730488098486,13.8816602,166.48,166.36,64.9755602]
[1730488098487,20.0,166.4,166.37,13.8816602]
[1730488099400,20.0,166.4,166.38,13.8816602]
[1730488099602,43.776884,166.43,166.38,13.8816602]
[1730488100070,57.6585442,166.43,166.39,21.0348]
[1730488100689,57.6585442,166.4,166.39,21.0348]
[1730488101685,57.6585442,166.4,166.39,15.0249]
[1730488102397,57.6585442,166.4,166.34,15.0294]
[1730488102598,23.776884,166.36,166.34,15.0294]
[1730488102782,20.0,166.35,166.34,15.0294]
[1730488103088,20.0,166.35,166.34,28.9110602]
[1730488105288,20.0,166.35,166.34,34.9227602]
[1730488105597,13.8816602,166.41,166.34,34.9227602]
[1730488105771,20.0,166.39,166.36,13.8816602]
[1730488105980,20.0,166.39,166.37,13.8816602]
[1730488106192,23.776884,166.41,166.37,13.8816602]
[1730488107282,57.6585442,166.42,166.37,13.8816602]
[1730488108394,43.776884,166.42,166.38,13.8816602]
[1730488108581,43.776884,166.42,166.35,81.1541]
[1730488108582,13.8816602,166.47,166.41,13.8816602]
[1730488108898,21.0571,166.5,166.37,13.8816602]
[1730488108899,13.8816602,166.43,166.37,13.8816602]
[1730488109105,13.8816602,166.42,166.37,13.8816602]
[1730488109293,13.8816602,166.42,166.38,21.0361]
[1730488109596,13.8816602,166.43,166.38,21.0361]
[1730488109776,20.0,166.41,166.38,21.0361]
[1730488110679,20.0,166.39,166.38,21.0361]
[1730488111087,57.6585442,166.39,166.38,21.0361]
[1730488111402,23.776884,166.36,166.34,21.0411]
[1730488111590,43.776884,166.35,166.34,21.0411]
[1730488112513,57.6585442,166.35,166.34,21.0411]
[1730488113393,20.0,166.33,166.3,64.9927602]
[1730488113803,20.0,166.33,166.31,13.8816602]
[1730488114001,23.776884,166.36,166.32,13.8816602]
[1730488114301,20.0,166.35,166.32,13.8816602]
[1730488114505,20.0,166.35,166.34,13.8816602]
[1730488114905,20.0,166.37,166.34,13.8816602]
[1730488115479,20.0,166.37,166.35,34.9215602]
[1730488115789,20.0,166.4,166.36,13.8816602]
[1730488116504,13.8816602,166.42,166.36,13.8816602]
[1730488116706,20.0,166.41,166.36,13.8816602]
[1730488116883,13.8816602,166.42,166.36,13.8816602]
[1730488116884,20.0,166.39,166.36,13.8816602]
[1730488117506,20.0,166.39,166.37,21.0373]
[1730488117889,20.0,166.39,166.37,34.9189602]
[1730488118282,20.0,166.39,166.37,21.0373]
[1730488118479,20.0,166.39,166.37,34.9189602]
[1730488118681,20.0,166.39,166.38,13.8816602]
[1730488118906,20.0,166.42,166.37,64.9723602]
[1730488119097,33.8816602,166.42,166.37,51.0907]
[1730488119410,16.3788,166.45,166.37,51.0907]
[1730488119411,20.0,166.38,166.37,30.0534]
[1730488119699,33.8816602,166.38,166.35,30.0571]
[1730488119894,20.0,166.36,166.35,30.0571]
[1730488120093,33.8816602,166.36,166.35,30.0571]
[1730488120297,20.0,166.36,166.35,30.0571]
[1730488123009,20.0,166.36,166.35,36.0685]
[1730488123986,20.0,166.36,166.35,49.9501602]
[1730488124601,20.0,166.36,166.35,36.0685]
[1730488126093,20.0,166.36,166.35,30.0571]
[1730488128387,16.3788,166.45,166.35,43.9387602]
[1730488128388,13.8816602,166.41,166.35,43.9387602]
[1730488128587,20.0,166.41,166.37,13.8816602]
[1730488128809,13.8816602,166.44,166.39,13.8816602]
[1730488129193,13.8816602,166.43,166.37,13.8816602]
[1730488129390,13.8816602,166.42,166.37,13.8816602]
[1730488130005,13.8816602,166.42,166.36,13.8816602]
[1730488130212,20.0,166.41,166.37,13.8816602]
[1730488130417,20.0,166.41,166.38,21.0361]
[1730488132115,20.0,166.42,166.38,15.0258]
[1730488132301,20.0,166.4,166.38,15.0258]
[1730488132500,20.0,166.4,166.38,28.9074602]
[1730488132702,20.0,166.4,166.38,15.0258]
[1730488133113,37.6585442,166.39,166.38,15.0258]
[1730488133298,57.6585442,166.39,166.38,15.0258]
[1730488134189,20.0,166.38,166.34,51.1]
[1730488134392,33.8816602,166.38,166.34,51.1]
[1730488134588,37.6585442,166.37,166.34,51.1]
[1730488134820,20.0,166.36,166.34,51.1]
[1730488135299,33.8816602,166.36,166.34,51.1]
[1730488135918,20.0,166.36,166.34,51.1]
[1730488136414,33.8816602,166.36,166.34,45.0883]
[1730488136717,20.0,166.35,166.34,45.0883]
[1730488137894,20.0,166.35,166.34,58.9699602]
[1730488138216,20.0,166.35,166.34,45.0883]
[1730488138416,20.0,166.35,166.34,51.1]
[1730488138819,23.776884,166.38,166.34,64.9816602]
[1730488139003,20.0,166.38,166.35,13.8816602]
[1730488139401,20.0,166.38,166.34,64.9816602]
[1730488139716,33.8816602,166.38,166.34,51.1]
[1730488139925,37.6585442,166.35,166.34,21.0411]
[1730488140097,57.6585442,166.35,166.34,21.0411]
[1730488140302,20.0,166.34,166.31,51.1092]
[1730488141331,33.8816602,166.32,166.31,21.0449]
[1730488141504,57.6585442,166.32,166.31,15.0321]
[1730488142401,43.776884,166.31,166.25,21.0525]
[1730488142619,57.6585442,166.29,166.25,21.0525]
[1730488142817,43.776884,166.28,166.25,21.0525]
[1730488143125,57.6585442,166.28,166.25,21.0525]
[1730488144518,43.776884,166.28,166.25,21.0525]
[1730488145016,43.776884,166.26,166.25,21.0525]
[1730488145220,57.6585442,166.26,166.25,21.0525]
[1730488145603,57.6585442,166.26,166.19,21.0602]
[1730488145911,20.0,166.2,166.19,21.0602]
[1730488146113,43.776884,166.2,166.19,21.0602]
[1730488146417,57.6585442,166.2,166.19,21.0602]
[1730488147238,20.0,166.18,166.16,21.0639]
[1730488147528,57.6585442,166.17,166.16,15.0457]
[1730488148227,57.6585442,166.17,166.14,0.6151732]
[1730488148228,43.776884,166.15,166.14,0.6151732]
[1730488148429,57.6585442,166.15,166.14,0.6151732]
[1730488148637,43.776884,166.15,166.14,6.6341732]
[1730488149507,43.776884,166.15,166.08,15.0525]
[1730488149508,23.776884,166.13,166.08,15.0525]
[1730488149732,66.08138794,166.09,166.08,15.0525]
[1730488151142,43.776884,166.08,166.02,52.42060394]
[1730488151430,43.776884,166.06,166.03,21.0805]
[1730488151641,20.0,166.06,166.03,43.38500394]
[1730488151829,20.0,166.06,166.04,22.30450394]
[1730488152208,43.776884,166.09,166.04,22.30450394]
[1730488152405,66.08138794,166.09,166.03,43.38500394]
[1730488152710,66.08138794,166.09,166.03,73.50000394]
[1730488153513,43.776884,166.09,166.04,22.30450394]
[1730488154009,43.776884,166.09,166.05,22.30450394]
[1730488154531,66.08138794,166.09,166.03,103.61500394]
[1730488154829,43.776884,166.09,166.04,22.30450394]
[1730488155045,43.776884,166.09,166.05,22.30450394]
[1730488155813,43.776884,166.09,166.06,15.0547]
[1730488156009,66.08138794,166.07,166.06,15.0547]
[1730488156430,43.776884,166.06,166.02,15.0582]
[1730488156619,66.08138794,166.03,166.02,15.0582]
[1730488157740,66.08138794,166.03,165.99,21.0855]
[1730488158040,20.0,166.0,165.99,21.0855]
[1730488158219,66.08138794,166.0,165.99,21.0855]
[1730488158823,43.776884,165.99,165.98,0.6151732]
[1730488159041,66.08138794,165.99,165.98,0.6151732]
[1730488160138,72.10578794,165.99,165.98,0.6151732]
[1730488160348,66.08138794,165.99,165.98,0.6151732]
[1730488160633,72.10578794,165.99,165.98,0.6151732]
[1730488161042,66.08138794,165.99,165.98,0.6151732]
[1730488161417,72.10578794,165.99,165.98,0.6151732]
[1730488162034,66.08138794,165.99,165.98,0.6151732]
[1730488162246,42.30450394,165.99,165.98,0.6151732]
[1730488163737,66.08138794,165.99,165.98,0.6151732]
[1730488165623,66.08138794,165.99,165.98,6.6399732]
[1730488165932,42.30450394,165.99,165.98,6.6399732]
[1730488166133,22.30450394,166.0,165.98,21.7019732]
[1730488166438,12.256,166.05,165.98,21.7019732]
[1730488166439,22.30450394,165.99,165.98,21.7019732]
[1730488167128,46.08138794,165.99,165.98,15.6771732]
[1730488167530,66.08138794,165.99,165.98,15.6771732]
[1730488167737,66.08138794,165.99,165.98,21.7019732]
[1730488168249,43.776884,165.99,165.98,21.7019732]
[1730488168543,66.08138794,165.99,165.98,21.7019732]
[1730488170048,43.776884,165.99,165.98,21.7019732]
[1730488170349,66.08138794,165.99,165.98,21.7019732]
[1730488170723,57.7396561,165.99,165.98,21.7019732]
[1730488171147,57.7396561,165.99,165.98,0.6151732]
[1730488171453,57.7396561,165.99,165.98,6.6399732]
[1730488171828,57.7396561,165.99,165.98,0.6151732]
[1730488172034,57.7396561,165.99,165.98,6.6399732]
[1730488172439,43.776884,165.99,165.98,6.6399732]
[1730488173249,57.7396561,165.99,165.98,0.6151732]
[1730488174834,63.7640561,165.99,165.98,0.6151732]
[1730488175126,20.0,165.98,165.86,13.9627721]
[1730488175350,33.9627721,165.9,165.86,51.2473]
[1730488175553,20.0,165.88,165.86,51.2473]
[1730488175931,33.9627721,165.88,165.86,21.102]
[1730488176159,33.9627721,165.88,165.86,15.0729]
[1730488176452,13.9627721,165.9,165.86,15.0729]
[1730488176657,20.0,165.89,165.86,29.0356721]
[1730488177249,23.776884,165.89,165.86,29.0356721]
[1730488177463,20.0,165.88,165.86,29.0356721]
[1730488177629,20.0,165.88,165.87,13.9627721]
[1730488177825,20.0,165.88,165.86,29.0356721]
[1730488178030,20.0,165.88,165.87,13.9627721]
[1730488178251,20.0,165.88,165.87,19.9915721]
[1730488181051,13.9627721,165.96,165.87,19.9915721]
[1730488181252,23.776884,165.96,165.91,13.9627721]
[1730488181548,22.2458,166.01,165.93,13.9627721]
[1730488181549,13.9627721,165.98,165.93,13.9627721]
[1730488181733,13.9627721,165.99,165.93,13.9627721]
[1730488181932,13.9627721,165.97,165.91,13.9627721]
[1730488182132,13.9627721,165.96,165.91,13.9627721]
[1730488182356,13.9627721,165.96,165.9,20.1841721]
[1730488182657,13.9627721,165.98,165.92,13.9627721]
[1730488183138,20.0,165.97,165.92,13.9627721]
[1730488183349,13.9627721,165.98,165.93,13.9627721]
[1730488183350,20.0,165.95,165.93,13.9627721]
[1730488183556,43.776884,165.94,165.93,13.9627721]
[1730488183872,43.776884,165.94,165.92,13.9627721]
[1730488184053,43.776884,165.93,165.92,13.9627721]
[1730488184568,43.776884,165.93,165.92,19.9897721]
[1730488184873,23.776884,165.98,165.92,19.9897721]
[1730488185074,23.776884,165.96,165.92,65.1922721]
[1730488185279,43.776884,165.95,165.94,13.9627721]
[1730488186071,23.776884,166.01,165.94,13.9627721]
[1730488186381,13.9627721,166.01,165.96,13.9627721]
[1730488186565,13.9627721,166.01,165.97,21.088]
[1730488187376,13.9627721,166.03,165.98,13.9627721]
[1730488188068,13.9627721,166.01,165.97,51.2139]
[1730488188466,13.9627721,166.01,165.97,30.1259]
[1730488188664,23.776884,166.01,165.97,30.1259]
[1730488188975,57.7396561,165.98,165.97,30.1259]
[1730488189175,23.776884,165.97,165.96,30.1271]
[1730488189469,43.776884,165.97,165.96,30.1271]
[1730488189671,23.776884,165.95,165.93,21.0931]
[1730488189875,43.776884,165.94,165.93,21.0931]
[1730488190884,43.776884,165.94,165.93,15.0665]
[1730488195274,43.776884,165.94,165.93,21.0931]
[1730488196785,20.0,165.94,165.93,35.0558721]
[1730488197657,20.0,166.01,165.93,95.3220721]
[1730488197851,20.0,166.01,165.96,13.9627721]
[1730488198279,20.0,166.01,165.93,81.3593]
[1730488198280,33.9627721,166.01,165.95,13.9627721]
[1730488198659,20.0,166.01,165.96,13.9627721]
[1730488198860,20.0,165.99,165.96,13.9627721]
[1730488199177,43.776884,165.98,165.97,21.088]
[1730488199374,20.0,165.98,165.97,21.088]
[1730488200182,20.0,165.98,165.97,35.0507721]
[1730488200481,13.9627721,166.1,165.98,6.0816]
[1730488200666,13.9627721,166.1,166.05,13.9627721]
[1730488200983,13.9627721,166.1,166.0,13.9627721]
[1730488200984,13.9627721,166.12,166.06,13.9627721]
[1730488201173,13.9627721,166.12,166.07,21.0753]
[1730488201485,13.9627721,166.08,166.07,21.0753]
[1730488201854,13.9627721,166.08,166.07,15.0538]
[1730488202057,33.9627721,166.08,166.07,15.0538]
[1730488202369,20.0,166.07,166.06,6.0218]
[1730488202679,33.9627721,166.07,166.04,21.0788]
[1730488202891,13.9627721,166.06,166.04,21.0788]
[1730488203067,43.776884,166.05,166.01,35.0457721]
[1730488203259,43.776884,166.05,166.01,65.1643721]
[1730488203876,43.776884,166.05,166.03,13.9627721]
[1730488204061,20.0,166.05,166.04,13.9627721]
[1730488204259,20.0,166.05,166.03,13.9627721]
[1730488204487,33.9627721,166.09,166.03,13.9627721]
[1730488204675,33.9627721,166.07,166.01,65.1643721]
[1730488204877,13.9627721,166.06,166.01,65.1643721]
[1730488205083,33.9627721,166.07,166.01,65.1643721]
[1730488205269,23.776884,166.04,166.02,13.9627721]
[1730488205459,23.776884,166.04,166.01,65.1643721]
[1730488205663,20.0,166.03,166.01,65.1643721]
[1730488206287,20.0,166.03,166.02,13.9627721]
[1730488206681,20.0,166.03,166.01,65.1643721]
[1730488206894,20.0,166.03,166.01,51.2016]
[1730488207186,43.776884,166.02,166.01,21.083]
[1730488208269,57.7396561,166.02,166.01,21.083]
[1730488208588,20.0,165.99,165.98,21.0865]
[1730488208896,43.776884,165.99,165.98,21.0865]
[1730488209387,43.776884,165.99,165.97,30.1259]
[1730488209388,43.776884,165.98,165.97,30.1259]
[1730488209776,23.776884,165.96,165.95,21.0906]
[1730488209979,43.776884,165.96,165.95,21.0906]
[1730488210984,43.776884,165.96,165.95,35.0533721]
[1730488211186,23.776884,165.94,165.92,21.0943]
[1730488211487,43.776884,165.93,165.92,21.0943]
[1730488211672,23.776884,165.93,165.92,21.0943]
[1730488211864,43.776884,165.93,165.92,21.0943]
[1730488212289,43.776884,165.93,165.92,35.0570721]
[1730488212677,43.776884,165.93,165.92,21.0943]
[1730488212873,43.776884,165.93,165.92,35.0570721]
[1730488213072,23.776884,165.98,165.92,65.1920721]
[1730488213279,20.0,165.95,165.94,13.9627721]
[1730488213669,13.9627721,166.02,165.94,13.9627721]
[1730488213873,13.9627721,166.04,165.98,13.9627721]
[1730488214300,13.9627721,166.03,165.97,13.9627721]
[1730488214494,13.9627721,166.02,165.96,13.9627721]
[1730488215002,20.0,166.02,165.97,13.9627721]
[1730488215176,20.0,166.02,165.98,21.0868]
[1730488215697,20.0,166.02,165.98,35.0495721]
[1730488215892,20.0,166.0,165.98,35.0495721]
[1730488216398,20.0,166.0,165.98,65.1736721]
[1730488218276,20.0,166.0,165.99,13.9627721]
[1730488219104,23.776884,166.04,165.99,13.9627721]
[1730488219274,23.776884,166.05,166.0,13.9627721]
[1730488219475,23.776884,166.05,166.01,21.083]
[1730488219882,23.776884,166.06,166.01,65.1643721]